fUST/lending_fUST_20250930
["ID","MTS","AMOUNT","RATE_DAILY","PERIOD"]
[388436007,1759168236774,-1000.0,0.0002359,2]
[388436009,1759168236787,-1000.0,0.0002359,2]
[388436010,1759168236799,-500.0,0.0002359,2]
[388436011,1759168236811,-1000.0,0.0002359,2]
[388436012,1759168236823,-1000.0,0.0002359,2]
[388436013,1759168236835,-500.0,0.0002359,2]
[388436015,1759168236847,-1000.0,0.0002359,2]
[388436016,1759168236859,-151.0,0.0002359,2]
[388436017,1759168236876,-1000.0,0.0002359,2]
[388436018,1759168236889,-500.0,0.0002359,2]
[388436019,1759168236901,-1000.0,0.0002359,2]
[388436021,1759168236913,-151.0,0.0002359,2]
[388436022,1759168236927,-151.0,0.0002359,2]
[388436023,1759168236941,-1000.0,0.0002359,2]
[388436024,1759168236955,-500.0,0.0002359,2]
[388436026,1759168236967,-1000.0,0.0002359,2]
[388436027,1759168236977,-151.0,0.0002359,2]
[388436028,1759168236987,-500.0,0.0002359,2]
[388436029,1759168236999,-1000.0,0.0002359,2]
[388436030,1759168237010,-1000.0,0.0002359,2]
[388436032,1759168237024,-151.0,0.0002359,2]
[388436033,1759168237036,-500.0,0.0002359,2]
[388436034,1759168237048,-1000.0,0.0002359,2]
[388436035,1759168237058,-1000.0,0.0002359,2]
[388436036,1759168237069,-151.0,0.0002359,2]
[388436038,1759168237081,-500.0,0.0002359,2]
[388436039,1759168237094,-1000.0,0.0002359,2]
[388436040,1759168237105,-1000.0,0.0002359,2]
[388436041,1759168237116,-152.06703409,0.0002359,2]
[388436042,1759168237127,-500.0,0.0002359,2]
[388436044,1759168237137,-1000.0,0.0002359,2]
[388436045,1759168237148,-250.0,0.0002359,2]
[388436046,1759168237166,-1000.0,0.0002359,2]
[388436047,1759168237177,-500.0,0.0002359,2]
[388436048,1759168237190,-1000.0,0.0002359,2]
[388436050,1759168237201,-250.0,0.0002359,2]
[388436051,1759168237214,-537.7399031,0.0002359,2]
[388436052,1759168237226,-248.96289175,0.0002359,2]
[388436071,1759168238044,-484.01351364,0.00023431,2]
[388436072,1759168238055,-612.16600097,0.00023431,2]
[388436073,1759168238067,-480.0,0.00023431,2]
[388436074,1759168238078,-236.49932577,0.00023434,2]
[388436076,1759168238090,-480.0,0.00023434,2]
[388436077,1759168238102,-480.0,0.00023435,2]
[388436078,1759168238113,-480.0,0.00023435,2]
[388436079,1759168238124,-480.0,0.00023435,2]
[388436080,1759168238135,-480.0,0.00023435,2]
[388436082,1759168238147,-200.0,0.00023507,10]
[388436083,1759168238158,-200.0,0.00023507,10]
[388436084,1759168238171,-200.0,0.00023507,10]
[388436085,1759168238183,-200.0,0.00023507,10]
[388436086,1759168238194,-200.0,0.00023507,10]
[388436088,1759168238206,-200.0,0.00023507,10]
[388436089,1759168238218,-177.118955,0.00023507,10]
[388436090,1759168238230,-751.03710825,0.0002359,2]
[388436091,1759168238241,-250.0,0.0002359,2]
[388436092,1759168238253,-500.0,0.0002359,2]
[388436094,1759168238264,-1000.0,0.0002359,2]
[388436095,1759168238280,-250.0,0.0002359,2]
[388436096,1759168238291,-250.0,0.0002359,2]
[388436097,1759168238303,-250.0,0.0002359,2]
[388436098,1759168238314,-250.0,0.0002359,2]
[388436099,1759168238326,-250.0,0.0002359,2]
[388436100,1759168238338,-200.0,0.0002359,2]
[388436101,1759168238349,-250.0,0.0002359,2]
[388436102,1759168238360,-200.0,0.0002359,2]
[388436103,1759168238372,-250.0,0.0002359,2]
[388436104,1759168238383,-200.0,0.0002359,2]
[388436105,1759168238394,-250.0,0.0002359,2]
[388436106,1759168238403,-200.0,0.0002359,2]
[388436107,1759168238413,-32.15011065,0.0002359,2]
[388436108,1759168238426,-217.84988935,0.0002359,2]
[388436109,1759168238437,-256.63513285,0.0002359,2]
[388436110,1759168238446,-286.415989,0.0002359,2]
[388436111,1759168238456,-151.0,0.0002359,2]
[388436112,1759168238466,-504.06509231,0.00023593,2]
[388436113,1759168238476,-3058.15,0.00023594,3]
[388436115,1759168238485,-2101.28,0.00023594,3]
[388436116,1759168238495,-233.87608454,0.00023594,3]
[388436117,1759168238509,-7128.93392326,0.00023601,2]
[388436118,1759168238519,-566.8,0.00023603,2]
[388436119,1759168238528,-566.8,0.00023603,2]
[388436120,1759168238539,-566.8,0.00023603,2]
[388436122,1759168238549,-566.8,0.00023603,2]
[388436123,1759168238559,-566.8,0.00023603,2]
[388436124,1759168238568,-566.8,0.00023603,2]
[388436125,1759168238579,-566.8,0.00023603,2]
[388436126,1759168238589,-566.8,0.00023603,2]
[388436127,1759168238598,-566.8,0.00023603,2]
[388436133,1759168238875,-566.8,0.00023603,2]
[388436134,1759168238898,-566.8,0.00023603,2]
[388436136,1759168238920,-566.8,0.00023603,2]
[388436137,1759168238935,-566.8,0.00023603,2]
[388436138,1759168238946,-566.8,0.00023603,2]
[388436139,1759168238955,-566.8,0.00023603,2]
[388436140,1759168238966,-566.85,0.00023603,2]
[388436141,1759168238976,-370000.0,0.00023604,2]
[388436143,1759168238986,-322.83,0.00023606,2]
[388436144,1759168238996,-412.9651573,0.00023668,2]
[388436145,1759168239007,-500.0,0.00023673,2]
[388436146,1759168239018,-503.12023794,0.00023673,2]
[388436147,1759168239028,-279.20371496,0.00023673,2]
[388436148,1759168239038,-500.0,0.00023673,2]
[388436150,1759168239047,-515.16845242,0.00023673,2]
[388436151,1759168239057,-500.0,0.00023673,2]
[388436152,1759168239067,-500.0,0.00023673,2]
[388436153,1759168239077,-500.0,0.00023673,2]
[388436154,1759168239087,-500.0,0.00023673,2]
[388436155,1759168239098,-500.0,0.00023673,2]
[388436157,1759168239107,-500.0,0.00023673,2]
[388436158,1759168239119,-500.0,0.00023673,2]
[388436159,1759168239128,-500.0,0.00023673,2]
[388436160,1759168239138,-500.0,0.00023673,2]
[388436161,1759168239149,-500.0,0.00023673,2]
[388436162,1759168239159,-500.0,0.00023673,2]
[388436164,1759168239169,-500.0,0.00023673,2]
[388436165,1759168239178,-500.0,0.00023673,2]
[388436166,1759168239188,-500.0,0.00023673,2]
[388436167,1759168239198,-500.0,0.00023673,2]
[388436168,1759168239207,-500.0,0.00023673,2]
[388436169,1759168239217,-500.0,0.00023673,2]
[388436171,1759168239227,-500.0,0.00023673,2]
[388436172,1759168239236,-500.0,0.00023673,2]
[388436173,1759168239245,-500.0,0.00023673,2]
[388436174,1759168239255,-517.07436645,0.00023673,2]
[388436175,1759168239264,-500.0,0.00023673,2]
[388436176,1759168239275,-500.0,0.00023673,2]
[388436178,1759168239285,-500.0,0.00023673,2]
[388436179,1759168239294,-500.0,0.00023673,2]
[388436180,1759168239303,-500.0,0.00023673,2]
[388436181,1759168239313,-500.0,0.00023673,2]
[388436182,1759168239323,-500.0,0.00023673,2]
[388436183,1759168239333,-500.0,0.00023673,2]
[388436184,1759168239343,-500.0,0.00023673,2]
[388436186,1759168239353,-500.0,0.00023673,2]
[388436187,1759168239362,-500.0,0.00023673,2]
[388436188,1759168239372,-500.0,0.00023673,2]
[388436189,1759168239381,-500.0,0.00023673,2]
[388436190,1759168239391,-502.64759426,0.00023673,2]
[388436191,1759168239401,-500.0,0.00023673,2]
[388436193,1759168239411,-302.68444569,0.00023673,2]
[388436194,1759168239421,-500.0,0.00023673,2]
[388436195,1759168239431,-437.9317725,0.00023673,2]
[388436196,1759168239440,-373.59886101,0.00023673,2]
[388436197,1759168239449,-500.0,0.00023673,2]
[388436199,1759168239458,-500.0,0.00023673,2]
[388436202,1759168239468,-500.0,0.00023673,2]
[388436204,1759168239477,-1000.0,0.00023694,2]
[388436206,1759168239486,-1000.0,0.00023694,2]
[388436208,1759168239495,-1000.0,0.00023694,2]
[388436210,1759168239506,-1000.0,0.00023694,2]
[388436212,1759168239516,-1000.0,0.00023694,2]
[388436215,1759168239527,-7128.93392326,0.00023695,2]
[388436217,1759168239537,-1000.0,0.00023703,2]
[388436219,1759168239546,-1000.0,0.00023703,2]
[388436222,1759168239558,-480.0,0.00023705,2]
[388436224,1759168239568,-533.92,0.00023705,2]
[388436226,1759168239578,-480.0,0.00023705,2]
[388436229,1759168239589,-480.0,0.00023705,2]
[388436231,1759168239599,-579.9,0.00023705,2]
[388436234,1759168239610,-480.0,0.00023705,2]
[388436235,1759168239619,-480.0,0.00023705,2]
[388436237,1759168239628,-480.0,0.00023705,2]
[388436239,1759168239638,-480.0,0.00023705,2]
[388436242,1759168239647,-480.0,0.00023705,2]
[388436243,1759168239657,-480.0,0.00023706,2]
[388436244,1759168239667,-480.0,0.00023706,2]
[388436245,1759168239676,-480.0,0.00023706,2]
[388436246,1759168239686,-480.0,0.00023706,2]
[388436247,1759168239696,-645.29,0.00023706,2]
[388436249,1759168239706,-772.85,0.00023706,2]
[388436250,1759168239717,-480.0,0.00023706,2]
[388436251,1759168239728,-480.0,0.00023706,2]
[388436252,1759168239738,-480.0,0.00023706,2]
[388436253,1759168239749,-480.0,0.00023706,2]
[388436255,1759168239760,-590.03,0.00023706,2]
[388436256,1759168239770,-853.2,0.00023706,2]
[388436257,1759168239783,-1233.94,0.00023706,2]
[388436258,1759168239794,-909.78,0.00023706,2]
[388436259,1759168239804,-609.1,0.00023706,2]
[388436260,1759168239813,-480.0,0.00023706,2]
[388436262,1759168239823,-1622.82,0.00023706,2]
[388436263,1759168239831,-480.0,0.00023706,2]
[388436264,1759168239841,-480.0,0.00023706,2]
[388436265,1759168239851,-1867.12,0.00023706,2]
[388436266,1759168239861,-486.3,0.00023706,2]
[388436267,1759168239876,-520.07,0.00023706,2]
[388436269,1759168239886,-681.36,0.00023706,2]
[388436270,1759168239895,-480.0,0.00023706,2]
[388436271,1759168239904,-499.49,0.00023706,2]
[388436272,1759168239915,-1286.58,0.00023706,2]
[388436273,1759168239925,-8064.19,0.00023706,2]
[388436274,1759168239936,-1159.31,0.00023706,2]
[388436276,1759168239947,-2204.55,0.00023706,2]
[388436277,1759168239956,-1859.67,0.00023706,2]
[388436278,1759168239967,-480.0,0.00023706,2]
[388436279,1759168239976,-2569.86,0.00023706,2]
[388436280,1759168239986,-480.0,0.00023706,2]
[388436281,1759168239995,-480.0,0.00023707,2]
[388436283,1759168240005,-480.0,0.00023707,2]
[388436284,1759168240014,-480.0,0.00023707,2]
[388436285,1759168240024,-480.0,0.00023707,2]
[388436286,1759168240033,-480.0,0.00023707,2]
[388436287,1759168240044,-480.0,0.00023707,2]
[388436288,1759168240053,-480.0,0.00023707,2]
[388436290,1759168240062,-348.96976665,0.00023707,2]
[388436291,1759168240072,-480.0,0.00023707,2]
[388436292,1759168240081,-480.0,0.00023707,2]
[388436293,1759168240091,-480.0,0.00023707,2]
[388436294,1759168240101,-480.0,0.00023707,2]
[388436295,1759168240110,-480.0,0.00023707,2]
[388436297,1759168240119,-606.54,0.00023707,2]
[388436298,1759168240128,-727.53,0.00023707,2]
[388436299,1759168240137,-480.0,0.00023707,2]
[388436300,1759168240147,-744.57,0.00023707,2]
[388436301,1759168240156,-480.0,0.00023707,2]
[388436302,1759168240166,-554.59,0.00023707,2]
[388436304,1759168240176,-480.0,0.00023707,2]
[388436305,1759168240186,-707.89,0.00023707,2]
[388436306,1759168240195,-480.0,0.00023707,2]
[388436307,1759168240205,-480.0,0.00023707,2]
[388436308,1759168240216,-480.0,0.00023707,2]
[388436309,1759168240226,-910.87,0.00023707,2]
[388436311,1759168240235,-480.0,0.00023707,2]
[388436312,1759168240244,-532.3,0.00023707,2]
[388436313,1759168240254,-480.0,0.00023707,2]
[388436314,1759168240263,-480.0,0.00023707,2]
[388436315,1759168240273,-480.0,0.00023707,2]
[388436316,1759168240282,-480.0,0.00023707,2]
[388436318,1759168240292,-480.0,0.00023707,2]
[388436319,1759168240301,-480.0,0.00023707,2]
[388436320,1759168240310,-480.0,0.00023707,2]
[388436321,1759168240320,-632.43,0.00023707,2]
[388436322,1759168240330,-496.54,0.00023707,2]
[388436323,1759168240339,-480.0,0.00023707,2]
[388436325,1759168240348,-1230.19,0.00023707,2]
[388436326,1759168240358,-480.0,0.00023707,2]
[388436327,1759168240367,-400.82285493,0.00023707,2]
[388436328,1759168240377,-510.58,0.00023707,2]
[388436329,1759168240386,-480.0,0.00023707,2]
[388436330,1759168240395,-480.0,0.00023707,2]
[388436332,1759168240404,-480.0,0.00023707,2]
[388436333,1759168240414,-480.0,0.00023707,2]
[388436334,1759168240424,-480.0,0.00023707,2]
[388436335,1759168240434,-480.0,0.00023707,2]
[388436336,1759168240443,-480.0,0.00023707,2]
[388436337,1759168240453,-480.0,0.00023707,2]
[388436339,1759168240463,-480.0,0.00023707,2]
[388436340,1759168240472,-480.0,0.00023707,2]
[388436341,1759168240482,-480.0,0.00023707,2]
[388436342,1759168240492,-480.0,0.00023707,2]
[388436343,1759168240502,-517.34,0.00023707,2]
[388436344,1759168240513,-518.36,0.00023707,2]
[388436346,1759168240524,-480.0,0.00023707,2]
[388436347,1759168240534,-480.0,0.00023707,2]
[388436348,1759168240543,-480.0,0.00023707,2]
[388436349,1759168240552,-480.0,0.00023707,2]
[388436350,1759168240562,-480.0,0.00023707,2]
[388436351,1759168240571,-630.99,0.00023707,2]
[388436353,1759168240582,-635.95,0.00023707,2]
[388436354,1759168240594,-500.0,0.00023707,2]
[388436355,1759168240603,-480.0,0.00023707,2]
[388436356,1759168240613,-480.0,0.00023707,2]
[388436357,1759168240623,-480.0,0.00023707,2]
[388436358,1759168240633,-480.0,0.00023707,2]
[388436360,1759168240642,-480.0,0.00023707,2]
[388436361,1759168240651,-570.92,0.00023707,2]
[388436362,1759168240660,-506.74,0.00023707,2]
[388436363,1759168240670,-555.96,0.00023707,2]
[388436364,1759168240679,-677.15,0.00023707,2]
[388436365,1759168240689,-480.0,0.00023707,2]
[388436367,1759168240698,-480.0,0.00023707,2]
[388436368,1759168240707,-480.0,0.00023707,2]
[388436369,1759168240716,-480.0,0.00023707,2]
[388436370,1759168240727,-480.0,0.00023707,2]
[388436371,1759168240736,-516.00855954,0.00023707,2]
[388436372,1759168240745,-1400.7,0.00023707,2]
[388436374,1759168240755,-574.84,0.00023707,2]
[388436375,1759168240764,-480.0,0.00023707,2]
[388436376,1759168240773,-480.0,0.00023707,2]
[388436377,1759168240784,-480.0,0.00023707,2]
[388436378,1759168240793,-598.11,0.00023707,2]
[388436379,1759168240803,-480.0,0.00023707,2]
[388436381,1759168240812,-480.0,0.00023707,2]
[388436382,1759168240821,-480.0,0.00023707,2]
[388436383,1759168240831,-480.0,0.00023707,2]
[388436384,1759168240840,-2045.56,0.00023707,2]
[388436385,1759168240850,-1146.52,0.00023707,2]
[388436386,1759168240859,-539.27,0.00023707,2]
[388436387,1759168240869,-529.48,0.00023707,2]
[388436389,1759168240880,-480.0,0.00023707,2]
[388436390,1759168240890,-480.0,0.00023707,2]
[388436391,1759168240900,-480.0,0.00023707,2]
[388436392,1759168240910,-716.37,0.00023707,2]
[388436393,1759168240920,-535.46,0.00023707,2]
[388436394,1759168240929,-480.0,0.00023707,2]
[388436396,1759168240939,-918.45,0.00023707,2]
[388436397,1759168240948,-480.0,0.00023707,2]
[388436398,1759168240957,-480.0,0.00023707,2]
[388436399,1759168240967,-480.0,0.00023707,2]
[388436400,1759168240976,-480.0,0.00023707,2]
[388436401,1759168240985,-480.0,0.00023707,2]
[388436403,1759168240995,-480.0,0.00023707,2]
[388436404,1759168241004,-480.0,0.00023707,2]
[388436405,1759168241013,-480.0,0.00023707,2]
[388436406,1759168241023,-556.63,0.00023707,2]
[388436407,1759168241033,-480.0,0.00023707,2]
[388436408,1759168241042,-532.76,0.00023707,2]
[388436410,1759168241052,-480.0,0.00023707,2]
[388436411,1759168241061,-480.0,0.00023707,2]
[388436412,1759168241071,-496.03,0.00023707,2]
[388436413,1759168241081,-480.0,0.00023707,2]
[388436414,1759168241090,-562.62,0.00023707,2]
[388436415,1759168241100,-480.0,0.00023707,2]
[388436417,1759168241109,-480.0,0.00023707,2]
[388436418,1759168241119,-480.0,0.00023707,2]
[388436419,1759168241128,-480.0,0.00023707,2]
[388436420,1759168241138,-728.47590747,0.00023708,2]
[388436421,1759168241147,-800.0,0.00023708,2]
[388436422,1759168241157,-480.56,0.00023708,2]
[388436424,1759168241167,-480.0,0.00023708,2]
[388436425,1759168241177,-520.06,0.00023708,2]
[388436426,1759168241187,-538.7,0.00023708,2]
[388436427,1759168241197,-562.67,0.00023708,2]
[388436428,1759168241210,-862.61,0.00023708,2]
[388436429,1759168241222,-480.0,0.00023708,2]
[388436431,1759168241236,-480.0,0.00023708,2]
[388436432,1759168241247,-1973.05,0.00023708,2]
[388436433,1759168241259,-3223.83,0.00023708,2]
[388436434,1759168241269,-480.0,0.00023708,2]
[388436435,1759168241279,-480.0,0.00023708,2]
[388436437,1759168241288,-480.0,0.00023708,2]
[388436438,1759168241298,-1336.31,0.00023708,2]
[388436439,1759168241307,-480.0,0.00023708,2]
[388436440,1759168241317,-3856.73,0.00023708,2]
[388436441,1759168241327,-394.31354082,0.00023708,2]
[388436442,1759168241337,-977.73,0.00023708,2]
[388436444,1759168241346,-1074.64,0.00023708,2]
[388436445,1759168241355,-480.0,0.00023708,2]
[388436446,1759168241365,-1949.36,0.00023708,2]
[388436447,1759168241375,-480.0,0.00023708,2]
[388436448,1759168241386,-480.0,0.00023709,2]
[388436449,1759168241395,-480.0,0.00023709,2]
[388436451,1759168241405,-480.0,0.00023709,2]
[388436452,1759168241415,-437.44316648,0.00023709,2]
[388436453,1759168241424,-515.04,0.00023709,2]
[388436454,1759168241434,-529.36,0.00023709,2]
[388436455,1759168241445,-410.55409294,0.00023709,2]
[388436456,1759168241456,-480.0,0.00023709,2]
[388436458,1759168241465,-480.0,0.00023709,2]
[388436459,1759168241476,-480.0,0.00023709,2]
[388436460,1759168241487,-480.0,0.00023709,2]
[388436461,1759168241498,-563.37,0.00023709,2]
[388436462,1759168241507,-480.0,0.00023709,2]
[388436463,1759168241517,-588.63,0.00023709,2]
[388436465,1759168241527,-480.0,0.00023709,2]
[388436466,1759168241537,-1183.83,0.00023709,2]
[388436467,1759168241546,-898.88,0.00023709,2]
[388436468,1759168241556,-480.0,0.00023709,2]
[388436469,1759168241566,-894.25,0.00023709,2]
[388436471,1759168241577,-873.82,0.00023709,2]
[388436472,1759168241586,-674.98,0.00023709,2]
[388436473,1759168241595,-480.0,0.00023709,2]
[388436474,1759168241604,-480.0,0.00023709,2]
[388436475,1759168241615,-1152.83,0.00023709,2]
[388436476,1759168241626,-480.0,0.00023709,2]
[388436478,1759168241635,-553.31,0.00023709,2]
[388436479,1759168241646,-527.8,0.00023709,2]
[388436480,1759168241656,-480.0,0.00023709,2]
[388436481,1759168241667,-516.29,0.00023709,2]
[388436482,1759168241677,-553.4,0.00023709,2]
[388436483,1759168241687,-713.28,0.00023709,2]
[388436485,1759168241696,-480.0,0.00023709,2]
[388436486,1759168241706,-408.98,0.00023709,2]
[388436487,1759168241715,-900.1,0.00023709,2]
[388436488,1759168241725,-480.0,0.00023709,2]
[388436489,1759168241734,-480.0,0.00023709,2]
[388436490,1759168241744,-480.0,0.00023709,2]
[388436492,1759168241754,-914.62,0.00023709,2]
[388436493,1759168241763,-668.23,0.00023709,2]
[388436494,1759168241773,-945.08,0.00023709,2]
[388436495,1759168241782,-620.16,0.00023709,2]
[388436496,1759168241792,-480.0,0.00023709,2]
[388436497,1759168241802,-850.4,0.00023709,2]
[388436499,1759168241811,-480.0,0.00023709,2]
[388436500,1759168241821,-480.0,0.00023709,2]
[388436501,1759168241831,-480.0,0.00023709,2]
[388436502,1759168241840,-786.93,0.00023709,2]
[388436503,1759168241850,-480.0,0.00023709,2]
[388436504,1759168241860,-480.0,0.00023709,2]
[388436506,1759168241872,-557.21,0.00023709,2]
[388436507,1759168241882,-591.3,0.00023709,2]
[388436508,1759168241892,-480.0,0.00023709,2]
[388436509,1759168241902,-652.15,0.00023709,2]
[388436510,1759168241911,-480.0,0.00023709,2]
[388436511,1759168241923,-480.0,0.00023709,2]
[388436513,1759168241933,-480.0,0.00023709,2]
[388436514,1759168241942,-480.0,0.00023709,2]
[388436515,1759168241954,-400.0,0.00023709,2]
[388436516,1759168241963,-480.0,0.00023709,2]
[388436517,1759168241973,-480.0,0.00023709,2]
[388436518,1759168241983,-480.0,0.00023709,2]
[388436520,1759168241993,-480.0,0.00023709,2]
[388436521,1759168242003,-480.0,0.00023709,2]
[388436522,1759168242012,-480.0,0.00023709,2]
[388436523,1759168242022,-783.65,0.00023709,2]
[388436524,1759168242031,-480.0,0.00023709,2]
[388436525,1759168242041,-303.98594967,0.00023709,2]
[388436526,1759168242051,-527.15,0.00023709,2]
[388436528,1759168242060,-480.0,0.00023709,2]
[388436529,1759168242069,-480.0,0.00023709,2]
[388436530,1759168242079,-595.24,0.00023709,2]
[388436531,1759168242088,-598.36,0.00023709,2]
[388436532,1759168242098,-480.0,0.00023709,2]
[388436533,1759168242107,-1192.59,0.00023709,2]
[388436535,1759168242117,-556.82,0.00023709,2]
[388436536,1759168242127,-480.0,0.00023709,2]
[388436537,1759168242137,-480.0,0.00023709,2]
[388436538,1759168242147,-480.0,0.00023709,2]
[388436539,1759168242155,-823.86,0.00023709,2]
[388436540,1759168242165,-480.0,0.00023709,2]
[388436544,1759168242319,-480.0,0.00023709,2]
[388436545,1759168242340,-854.92,0.00023709,2]
[388436547,1759168242350,-480.0,0.00023709,2]
[388436548,1759168242360,-480.0,0.00023709,2]
[388436549,1759168242369,-480.0,0.00023709,2]
[388436550,1759168242379,-537.4,0.00023709,2]
[388436551,1759168242389,-480.0,0.00023709,2]
[388436552,1759168242399,-498.05,0.00023709,2]
[388436555,1759168242408,-480.0,0.00023709,2]
[388436556,1759168242418,-1909.08,0.00023709,2]
[388436557,1759168242428,-1094.55,0.00023709,2]
[388436558,1759168242437,-553.82,0.00023709,2]
[388436559,1759168242448,-480.0,0.00023709,2]
[388436561,1759168242457,-482.05150474,0.00023709,2]
[388436563,1759168242467,-480.0,0.00023709,2]
[388436564,1759168242477,-480.0,0.00023709,2]
[388436565,1759168242486,-1636.92,0.00023709,2]
[388436566,1759168242495,-480.0,0.00023709,2]
[388436567,1759168242505,-632.44,0.00023709,2]
[388436568,1759168242514,-480.0,0.00023709,2]
[388436570,1759168242524,-2051.99,0.00023709,2]
[388436571,1759168242533,-980.66,0.00023709,2]
[388436572,1759168242543,-610.06,0.00023709,2]
[388436573,1759168242553,-480.0,0.00023709,2]
[388436574,1759168242563,-1236.58,0.00023709,2]
[388436575,1759168242572,-637.44,0.00023709,2]
[388436579,1759168242582,-737.44,0.00023709,2]
[388436581,1759168242592,-480.0,0.00023709,2]
[388436583,1759168242601,-597.17,0.00023709,2]
[388436585,1759168242611,-1053.96,0.00023709,2]
[388436588,1759168242620,-820.22,0.00023709,2]
[388436589,1759168242629,-2105.91,0.00023709,2]
[388436591,1759168242639,-496.18,0.00023709,2]
[388436593,1759168242649,-4624.01,0.00023709,2]
[388436595,1759168242660,-541.33,0.00023709,2]
[388436597,1759168242670,-480.0,0.00023709,2]
[388436598,1759168242680,-522.35,0.00023709,2]
[388436599,1759168242689,-763.64,0.00023709,2]
[388436601,1759168242699,-2112.74,0.00023709,2]
[388436602,1759168242709,-490.55,0.00023709,2]
[388436603,1759168242718,-480.0,0.00023709,2]
[388436604,1759168242727,-480.0,0.00023709,2]
[388436605,1759168242736,-480.0,0.00023709,2]
[388436606,1759168242746,-571.99,0.00023709,2]
[388436607,1759168242755,-840.65,0.00023709,2]
[388436609,1759168242764,-1096.96,0.00023709,2]
[388436610,1759168242774,-1798.69,0.00023709,2]
[388436611,1759168242783,-480.0,0.00023709,2]
[388436612,1759168242793,-1258.84,0.00023709,2]
[388436613,1759168242802,-480.0,0.00023709,2]
[388436614,1759168242812,-4814.07,0.00023709,2]
[388436616,1759168242822,-480.0,0.00023709,2]
[388436617,1759168242832,-694.2,0.00023709,2]
[388436618,1759168242841,-1055.89,0.00023709,2]
[388436619,1759168242851,-480.0,0.00023709,2]
[388436620,1759168242861,-918.69,0.00023709,2]
[388436621,1759168242874,-480.0,0.00023709,2]
[388436622,1759168242883,-2573.01,0.00023709,2]
[388436624,1759168242893,-500.0,0.00023709,2]
[388436625,1759168242903,-480.0,0.00023709,2]
[388436626,1759168242912,-696.63,0.00023709,2]
[388436627,1759168242924,-480.0,0.00023709,2]
[388436628,1759168242933,-328.78798777,0.00023709,2]
[388436629,1759168242943,-480.0,0.00023709,2]
[388436631,1759168242952,-480.0,0.00023709,2]
[388436632,1759168242962,-480.0,0.00023709,2]
[388436633,1759168242971,-2025.26,0.00023709,2]
[388436634,1759168242980,-499.50333973,0.00023709,2]
[388436635,1759168242990,-480.0,0.00023709,2]
[388436636,1759168243000,-5608.8,0.00023709,2]
[388436638,1759168243010,-480.0,0.00023709,2]
[388436639,1759168243019,-536.46,0.00023709,2]
[388436640,1759168243028,-873.4,0.00023709,2]
[388436641,1759168243038,-480.0,0.00023709,2]
[388436642,1759168243048,-480.0,0.00023709,2]
[388436643,1759168243058,-480.0,0.00023709,2]
[388436645,1759168243069,-480.0,0.0002371,2]
[388436646,1759168243081,-480.0,0.0002371,2]
[388436647,1759168243094,-480.0,0.0002371,2]